fUST/lending_fUST_20240815
["ID","MTS","AMOUNT","RATE_DAILY","PERIOD"]
[334997643,1723716681548,-1074.32,0.00015342,2]
[334997644,1723716681558,-1120.97,0.00015342,2]
[334997645,1723716681569,-500.0,0.00015342,2]
[334997646,1723716681579,-844.17,0.00015342,2]
[334997647,1723716681588,-1067.37,0.00015342,2]
[334997648,1723716681598,-562.8,0.00015342,2]
[334997649,1723716681607,-658.27,0.00015342,2]
[334997650,1723716681618,-500.0,0.00015342,2]
[334997651,1723716681627,-1035.86,0.00015342,2]
[334997652,1723716681637,-1942.4,0.00015342,2]
[334997653,1723716681648,-580.84,0.00015342,2]
[334997654,1723716681661,-860.49,0.00015342,2]
[334997655,1723716681670,-948.67,0.00015342,2]
[334997656,1723716681680,-500.0,0.00015342,2]
[334997657,1723716681691,-4530.48,0.00015342,2]
[334997658,1723716681701,-500.0,0.00015342,2]
[334997659,1723716681711,-1310.27,0.00015342,2]
[334997660,1723716681721,-615.48,0.00015342,2]
[334997661,1723716681731,-1631.5,0.00015342,2]
[334997662,1723716681741,-504.55,0.00015342,2]
[334997663,1723716681751,-8000.61,0.00015342,2]
[334997664,1723716681761,-505.84549563,0.00015342,2]
[334997665,1723716681771,-500.0,0.00015342,2]
[334997666,1723716681781,-700.72,0.00015342,2]
[334997667,1723716681790,-500.0,0.00015342,2]
[334997668,1723716681800,-1156.31,0.00015342,2]
[334997669,1723716681810,-1318.64,0.00015342,2]
[334997670,1723716681820,-163.04142922,0.00015342,2]
[334997671,1723716681829,-777.45,0.00015342,2]
[334997672,1723716681839,-2060.47,0.00015342,2]
[334997673,1723716681848,-1553.53,0.00015342,2]
[334997674,1723716681857,-2404.91,0.00015342,2]
[334997675,1723716681868,-500.0,0.00015342,2]
[334997676,1723716681877,-853.54,0.00015342,2]
[334997677,1723716681886,-4995.59,0.00015342,2]
[334997678,1723716681896,-671.77,0.00015342,2]
[334997679,1723716681907,-1660.52,0.00015342,2]
[334997680,1723716681917,-500.0,0.00015342,2]
[334997681,1723716681926,-465.96897698,0.00015342,2]
[334997682,1723716681936,-500.0,0.00015342,2]
[334997683,1723716681945,-567.31,0.00015342,2]
[334997684,1723716681954,-1508.2,0.00015342,2]
[334997685,1723716681964,-919.55,0.00015342,2]
[334997686,1723716681973,-1025.91,0.00015342,2]
[334997687,1723716681983,-500.0,0.00015342,2]
[334997688,1723716681992,-500.0,0.00015342,2]
[334997689,1723716682002,-569.43,0.00015342,2]
[334997690,1723716682011,-1601.78,0.00015342,2]
[334997691,1723716682021,-529.83,0.00015342,2]
[334997692,1723716682031,-1505.39,0.00015342,2]
[334997693,1723716682041,-500.0,0.00015342,2]
[334997694,1723716682051,-706.04,0.00015342,2]
[334997695,1723716682061,-1190.58,0.00015342,2]
[334997696,1723716682073,-2092.37,0.00015342,2]
[334997697,1723716682084,-570.66,0.00015342,2]
[334997698,1723716682094,-500.0,0.00015342,2]
[334997699,1723716682106,-500.0,0.00015342,2]
[334997700,1723716682117,-861.8,0.00015342,2]
[334997701,1723716682131,-1608.08,0.00015342,2]
[334997702,1723716682142,-500.0,0.00015342,2]
[334997703,1723716682155,-692.86,0.00015342,2]
[334997704,1723716682165,-603.0,0.000155,2]
[334997705,1723716682174,-465.00047825,0.00015581,2]
[334997706,1723716682184,-633.39,0.00015616,2]
[334997707,1723716682193,-500.0,0.00015616,2]
[334997708,1723716682203,-714.19,0.00015616,2]
[334997709,1723716682214,-978.47,0.00015616,2]
[334997710,1723716682224,-500.0,0.00015616,2]
[334997711,1723716682235,-500.0,0.00015616,2]
[334997712,1723716682245,-500.0,0.00015616,2]
[334997713,1723716682255,-727.05,0.00015616,2]
[334997714,1723716682265,-500.0,0.00015616,2]
[334997715,1723716682274,-500.0,0.00015616,2]
[334997716,1723716682283,-500.0,0.00015616,2]
[334997717,1723716682293,-697.47,0.00015616,2]
[334997718,1723716682303,-500.0,0.00015616,2]
[334997719,1723716682313,-766.4,0.00015616,2]
[334997720,1723716682323,-500.0,0.00015616,2]
[334997721,1723716682333,-500.0,0.00015616,2]
[334997722,1723716682342,-500.0,0.00015616,2]
[334997723,1723716682352,-500.0,0.00015616,2]
[334997724,1723716682362,-402.88490826,0.00015616,2]
[334997725,1723716682372,-500.0,0.00015616,2]
[334997726,1723716682382,-500.0,0.00015616,2]
[334997727,1723716682393,-500.0,0.00015616,2]
[334997728,1723716682405,-869.62,0.00015616,2]
[334997729,1723716682415,-500.0,0.00015616,2]
[334997730,1723716682425,-500.0,0.00015616,2]
[334997731,1723716682435,-590.23,0.00015616,2]
[334997732,1723716682446,-500.0,0.00015616,2]
[334997733,1723716682455,-500.0,0.00015616,2]
[334997734,1723716682466,-500.0,0.00015616,2]
[334997735,1723716682475,-500.0,0.00015616,2]
[334997736,1723716682484,-736.55,0.00015616,2]
[334997737,1723716682493,-500.0,0.00015616,2]
[334997738,1723716682502,-632.59,0.00015616,2]
[334997739,1723716682512,-739.83,0.00015616,2]
[334997740,1723716682522,-500.0,0.00015616,2]
[334997741,1723716682531,-618.54,0.00015616,2]
[334997742,1723716682541,-500.0,0.00015616,2]
[334997743,1723716682551,-500.0,0.00015616,2]
[334997744,1723716682560,-500.0,0.00015616,2]
[334997745,1723716682571,-500.0,0.00015616,2]
[334997746,1723716682585,-500.0,0.00015616,2]
[334997747,1723716682594,-693.68,0.00015616,2]
[334997748,1723716682604,-586.18,0.00015616,2]
[334997749,1723716682616,-768.05,0.00015616,2]
[334997750,1723716682625,-500.0,0.00015616,2]
[334997751,1723716682635,-500.0,0.00015616,2]
[334997752,1723716682645,-658.85,0.00015616,2]
[334997753,1723716682658,-500.0,0.00015616,2]
[334997754,1723716682667,-500.0,0.00015616,2]
[334997755,1723716682676,-724.88,0.00015616,2]
[334997756,1723716682685,-500.0,0.00015616,2]
[334997757,1723716682695,-500.0,0.00015616,2]
[334997758,1723716682704,-733.53,0.00015616,2]
[334997759,1723716682714,-500.0,0.00015616,2]
[334997760,1723716682723,-500.0,0.00015616,2]
[334997761,1723716682733,-500.0,0.00015616,2]
[334997762,1723716682743,-507.04,0.00015616,2]
[334997763,1723716682752,-500.0,0.00015616,2]
[334997764,1723716682761,-367.68526319,0.00015616,2]
[334997765,1723716682770,-807.88,0.00015616,2]
[334997766,1723716682780,-1080.27,0.00015616,2]
[334997767,1723716682789,-618.64,0.00015616,2]
[334997768,1723716682798,-500.0,0.00015616,2]
[334997769,1723716682808,-500.0,0.00015616,2]
[334997770,1723716682818,-500.0,0.00015616,2]
[334997771,1723716682827,-500.0,0.00015616,2]
[334997772,1723716682837,-549.53,0.00015616,2]
[334997773,1723716682847,-761.97,0.00015616,2]
[334997774,1723716682857,-448.06298532,0.00015616,2]
[334997775,1723716682866,-500.0,0.00015616,2]
[334997776,1723716682875,-500.0,0.00015616,2]
[334997777,1723716682885,-786.68,0.00015616,2]
[334997778,1723716682894,-337.10960528,0.00015616,2]
[334997779,1723716682904,-582.93,0.00015616,2]
[334997780,1723716682914,-500.0,0.00015616,2]
[334997781,1723716682923,-500.0,0.00015616,2]
[334997782,1723716682933,-500.0,0.00015616,2]
[334997783,1723716682943,-500.0,0.00015616,2]
[334997784,1723716682953,-1007.52,0.00015616,2]
[334997785,1723716682963,-1023.58,0.00015616,2]
[334997786,1723716682972,-500.0,0.00015616,2]
[334997787,1723716682982,-500.0,0.00015616,2]
[334997788,1723716682992,-636.2,0.00015616,2]
[334997789,1723716683002,-500.0,0.00015616,2]
[334997790,1723716683012,-523.91,0.00015616,2]
[334997791,1723716683022,-525.78,0.00015616,2]
[334997792,1723716683032,-500.0,0.00015616,2]
[334997793,1723716683042,-500.0,0.00015616,2]
[334997794,1723716683052,-540.2,0.00015616,2]
[334997795,1723716683062,-500.0,0.00015616,2]
[334997796,1723716683071,-722.89,0.00015616,2]
[334997797,1723716683081,-701.26,0.00015616,2]
[334997798,1723716683091,-500.0,0.00015616,2]
[334997799,1723716683101,-523.63,0.00015616,2]
[334997800,1723716683110,-500.0,0.00015616,2]
[334997801,1723716683120,-719.99,0.00015616,2]
[334997802,1723716683130,-705.57,0.00015616,2]
[334997803,1723716683140,-500.0,0.00015616,2]
[334997804,1723716683150,-760.14,0.00015616,2]
[334997805,1723716683160,-500.0,0.00015616,2]
[334997806,1723716683170,-500.0,0.00015616,2]
[334997807,1723716683180,-500.0,0.00015616,2]
[334997808,1723716683189,-500.0,0.00015616,2]
[334997809,1723716683199,-500.0,0.00015616,2]
[334997810,1723716683208,-703.21,0.00015616,2]
[334997811,1723716683218,-739.05,0.00015616,2]
[334997812,1723716683228,-809.79,0.00015616,2]
[334997813,1723716683238,-500.0,0.00015616,2]
[334997814,1723716683247,-753.0,0.00015616,2]
[334997815,1723716683257,-768.32,0.00015616,2]
[334997816,1723716683267,-735.32,0.00015616,2]
[334997817,1723716683276,-500.0,0.00015616,2]
[334997818,1723716683286,-500.0,0.00015616,2]
[334997819,1723716683295,-588.82,0.00015616,2]
[334997820,1723716683305,-500.0,0.00015616,2]
[334997821,1723716683315,-601.68,0.00015616,2]
[334997822,1723716683324,-959.18,0.00015616,2]
[334997823,1723716683334,-500.0,0.00015616,2]
[334997824,1723716683344,-500.0,0.00015616,2]
[334997825,1723716683354,-500.0,0.00015616,2]
[334997826,1723716683364,-577.71,0.00015616,2]
[334997827,1723716683374,-500.0,0.00015616,2]
[334997828,1723716683385,-739.29,0.00015616,2]
[334997829,1723716683397,-500.0,0.00015616,2]
[334997830,1723716683408,-500.0,0.00015616,2]
[334997831,1723716683417,-863.69,0.00015616,2]
[334997832,1723716683428,-683.56,0.00015616,2]
[334997833,1723716683439,-500.0,0.00015616,2]
[334997834,1723716683451,-1482.01,0.00015616,2]
[334997835,1723716683461,-637.65,0.00015616,2]
[334997836,1723716683471,-752.65,0.00015616,2]
[334997837,1723716683480,-500.0,0.00015616,2]
[334997838,1723716683490,-500.0,0.00015616,2]
[334997839,1723716683500,-916.36,0.00015616,2]
[334997840,1723716683510,-500.0,0.00015616,2]
[334997841,1723716683519,-905.05,0.00015616,2]
[334997842,1723716683529,-1137.78,0.00015616,2]
[334997843,1723716683688,-500.0,0.00015616,2]
[334997844,1723716683698,-500.0,0.00015616,2]
[334997845,1723716683708,-503.67773934,0.00015616,2]
[334997846,1723716683718,-151.19800049,0.00015616,2]
[334997847,1723716683728,-581.08,0.00015616,2]
[334997848,1723716683738,-618.51,0.00015616,2]
[334997849,1723716683747,-500.0,0.00015616,2]
[334997850,1723716683757,-696.9,0.00015616,2]
[334997851,1723716683767,-615.83,0.00015616,2]
[334997852,1723716683777,-500.0,0.00015616,2]
[334997853,1723716683788,-1246.53,0.00015616,2]
[334997854,1723716683797,-1277.91,0.00015616,2]
[334997855,1723716683807,-500.0,0.00015616,2]
[334997856,1723716683816,-500.0,0.00015616,2]
[334997857,1723716683826,-822.29,0.00015616,2]
[334997858,1723716683836,-500.0,0.00015616,2]
[334997859,1723716683845,-801.88,0.00015616,2]
[334997860,1723716683855,-500.0,0.00015616,2]
[334997861,1723716683865,-536.68,0.00015616,2]
[334997862,1723716683875,-500.0,0.00015616,2]
[334997863,1723716683886,-500.0,0.00015616,2]
[334997864,1723716683895,-3994.14,0.00015616,2]
[334997865,1723716683906,-546.03,0.00015616,2]
[334997866,1723716683915,-653.84,0.00015616,2]
[334997867,1723716683924,-855.41,0.00015616,2]
[334997868,1723716683934,-1698.32,0.00015616,2]
[334997869,1723716683944,-491.1,0.00015616,2]
[334997870,1723716683953,-500.0,0.00015616,2]
[334997871,1723716683963,-500.0,0.00015616,2]
[334997872,1723716683972,-865.22,0.00015616,2]
[334997873,1723716683983,-1671.37,0.00015616,2]
[334997874,1723716683993,-701.74,0.00015616,2]
[334997875,1723716684003,-1706.36,0.00015616,2]
[334997876,1723716684012,-556.69,0.00015616,2]
[334997877,1723716684022,-996.25,0.00015616,2]
[334997878,1723716684031,-500.0,0.00015616,2]
[334997879,1723716684041,-500.0,0.00015616,2]
[334997880,1723716684051,-1331.16,0.00015616,2]
[334997881,1723716684061,-500.0,0.00015616,2]
[334997882,1723716684070,-521.14,0.00015616,2]
[334997883,1723716684080,-581.45,0.00015616,2]
[334997884,1723716684091,-1209.32,0.00015616,2]
[334997885,1723716684101,-1818.92,0.00015616,2]
[334997886,1723716684111,-500.0,0.00015616,2]
[334997887,1723716684121,-1100.1,0.00015616,2]
[334997888,1723716684130,-562.82,0.00015616,2]
[334997889,1723716684141,-2254.64,0.00015616,2]
[334997890,1723716684150,-1967.02,0.00015616,2]
[334997891,1723716684160,-988.01,0.00015616,2]
[334997892,1723716684170,-527.63,0.00015616,2]
[334997893,1723716684180,-927.26,0.00015616,2]
[334997894,1723716684189,-500.0,0.00015616,2]
[334997895,1723716684198,-719.3,0.00015616,2]
[334997896,1723716684208,-572.43,0.00015616,2]
[334997897,1723716684217,-799.05,0.00015616,2]
[334997898,1723716684228,-581.88,0.00015616,2]
[334997899,1723716684237,-2164.18,0.00015616,2]
[334997900,1723716684247,-2006.92,0.00015616,2]
[334997901,1723716684256,-761.66,0.00015616,2]
[334997902,1723716684265,-2873.64,0.00015616,2]
[334997903,1723716684275,-500.0,0.00015616,2]
[334997904,1723716684283,-561.92,0.00015616,2]
[334997905,1723716684293,-7862.62,0.00015616,2]
[334997906,1723716684303,-500.0,0.00015616,2]
[334997907,1723716684312,-688.24,0.00015616,2]
[334997908,1723716684321,-500.0,0.00015616,2]
[334997909,1723716684332,-712.1,0.00015616,2]
[334997910,1723716684342,-2181.37,0.00015616,2]
[334997911,1723716684352,-527.87,0.00015616,2]
[334997912,1723716684362,-500.0,0.00015616,2]
[334997913,1723716684372,-500.0,0.00015616,2]
[334997914,1723716684381,-500.0,0.00015616,2]
[334997915,1723716684391,-1909.95,0.00015616,2]
[334997916,1723716684401,-747.02,0.00015616,2]
[334997917,1723716684413,-1074.32,0.00015616,2]
[334997918,1723716684423,-1120.97,0.00015616,2]
[334997919,1723716684432,-500.0,0.00015616,2]
[334997920,1723716684442,-844.17,0.00015616,2]
[334997921,1723716684452,-1067.37,0.00015616,2]
[334997922,1723716684461,-562.8,0.00015616,2]
[334997923,1723716684472,-658.27,0.00015616,2]
[334997924,1723716684481,-500.0,0.00015616,2]
[334997925,1723716684491,-1035.86,0.00015616,2]
[334997926,1723716684501,-1942.4,0.00015616,2]
[334997927,1723716684510,-580.84,0.00015616,2]
[334997928,1723716684521,-860.49,0.00015616,2]
[334997929,1723716684531,-948.67,0.00015616,2]
[334997930,1723716684540,-500.0,0.00015616,2]
[334997931,1723716684550,-4530.48,0.00015616,2]
[334997932,1723716684560,-500.0,0.00015616,2]
[334997933,1723716684570,-1310.27,0.00015616,2]
[334997934,1723716684584,-615.48,0.00015616,2]
[334997935,1723716684594,-1631.5,0.00015616,2]
[334997936,1723716684603,-504.55,0.00015616,2]
[334997937,1723716684615,-8000.61,0.00015616,2]
[334997938,1723716684625,-500.0,0.00015616,2]
[334997939,1723716684635,-700.72,0.00015616,2]
[334997940,1723716684646,-500.0,0.00015616,2]
[334997941,1723716684661,-1156.31,0.00015616,2]
[334997942,1723716684671,-1318.64,0.00015616,2]
[334997943,1723716684680,-777.45,0.00015616,2]
[334997944,1723716684691,-2060.47,0.00015616,2]
[334997945,1723716684701,-1553.53,0.00015616,2]
[334997946,1723716684711,-2404.91,0.00015616,2]
[334997947,1723716684720,-206.88407805,0.00015616,2]
[334997948,1723716684731,-853.54,0.00015616,2]
[334997949,1723716684741,-4995.59,0.00015616,2]
[334997950,1723716684751,-671.77,0.00015616,2]
[334997951,1723716684760,-1660.52,0.00015616,2]
[334997952,1723716684771,-189.83826702,0.00015616,2]
[334997953,1723716684780,-500.0,0.00015616,2]
[334997954,1723716684789,-567.31,0.00015616,2]
[334997955,1723716684798,-1508.2,0.00015616,2]
[334997956,1723716684809,-919.55,0.00015616,2]
[334997957,1723716684819,-1025.91,0.00015616,2]
[334997958,1723716684828,-500.0,0.00015616,2]
[334997959,1723716684838,-500.0,0.00015616,2]
[334997960,1723716684847,-569.43,0.00015616,2]
[334997961,1723716684857,-1601.78,0.00015616,2]
[334997962,1723716684867,-529.83,0.00015616,2]
[334997963,1723716684876,-1505.39,0.00015616,2]
[334997964,1723716684886,-500.0,0.00015616,2]
[334997965,1723716684896,-706.04,0.00015616,2]
[334997966,1723716684906,-1190.58,0.00015616,2]
[334997967,1723716684916,-2092.37,0.00015616,2]
[334997968,1723716684926,-570.66,0.00015616,2]
[334997969,1723716684935,-500.0,0.00015616,2]
[334997970,1723716684945,-500.0,0.00015616,2]
[334997971,1723716684955,-861.8,0.00015616,2]
[334997972,1723716684965,-1608.08,0.00015616,2]
[334997973,1723716684974,-500.0,0.00015616,2]
[334997974,1723716684983,-692.86,0.00015616,2]
[334997975,1723716684993,-150.0,0.00015644,2]
[334997976,1723716685003,-633.39,0.0001589,2]
[334997977,1723716685012,-500.0,0.0001589,2]
[334997978,1723716685022,-714.19,0.0001589,2]
[334997979,1723716685031,-978.47,0.0001589,2]
[334997980,1723716685042,-500.0,0.0001589,2]
[334997981,1723716685051,-500.0,0.0001589,2]
[334997982,1723716685060,-500.0,0.0001589,2]
[334997983,1723716685070,-727.05,0.0001589,2]
[334997984,1723716685079,-500.0,0.0001589,2]
[334997985,1723716685088,-500.0,0.0001589,2]
[334997986,1723716685098,-500.0,0.0001589,2]
[334997987,1723716685107,-697.47,0.0001589,2]
[334997988,1723716685117,-500.0,0.0001589,2]
[334997989,1723716685127,-766.4,0.0001589,2]
[334997990,1723716685136,-500.0,0.0001589,2]
[334997991,1723716685146,-318.05275007,0.0001589,2]
[334997992,1723716685158,-500.0,0.0001589,2]
[334997993,1723716685167,-500.0,0.0001589,2]
[334997994,1723716685177,-500.0,0.0001589,2]
[334997995,1723716685186,-544.16802267,0.0001589,2]
[334997996,1723716685196,-869.62,0.0001589,2]
[334997997,1723716685206,-500.0,0.0001589,2]
[334997998,1723716685215,-500.0,0.0001589,2]
[334997999,1723716685225,-590.23,0.0001589,2]
[334998000,1723716685234,-500.0,0.0001589,2]
[334998001,1723716685243,-500.0,0.0001589,2]
[334998002,1723716685253,-500.0,0.0001589,2]
[334998003,1723716685262,-500.0,0.0001589,2]
[334998004,1723716685271,-736.55,0.0001589,2]
[334998005,1723716685281,-500.0,0.0001589,2]
[334998006,1723716685290,-632.59,0.0001589,2]
[334998007,1723716685299,-739.83,0.0001589,2]
[334998008,1723716685308,-500.0,0.0001589,2]
[334998009,1723716685317,-618.54,0.0001589,2]
[334998010,1723716685326,-500.0,0.0001589,2]
[334998011,1723716685335,-500.0,0.0001589,2]
[334998012,1723716685345,-500.0,0.0001589,2]
[334998013,1723716685354,-500.0,0.0001589,2]
[334998014,1723716685365,-510.72046235,0.0001589,2]
[334998015,1723716685374,-693.68,0.0001589,2]
[334998016,1723716685383,-586.18,0.0001589,2]
[334998017,1723716685394,-768.05,0.0001589,2]
[334998018,1723716685403,-500.0,0.0001589,2]
[334998019,1723716685414,-500.0,0.0001589,2]
[334998020,1723716685426,-658.85,0.0001589,2]
[334998021,1723716685436,-500.0,0.0001589,2]
[334998022,1723716685447,-500.0,0.0001589,2]
[334998023,1723716685457,-724.88,0.0001589,2]
[334998024,1723716685467,-500.0,0.0001589,2]
[334998025,1723716685477,-601.9340996,0.0001589,2]
[334998026,1723716685486,-733.53,0.0001589,2]
[334998027,1723716685495,-500.0,0.0001589,2]
[334998028,1723716685504,-500.0,0.0001589,2]
[334998029,1723716685514,-500.0,0.0001589,2]
[334998030,1723716685524,-507.04,0.0001589,2]
[334998031,1723716685533,-500.0,0.0001589,2]
[334998032,1723716685542,-807.88,0.0001589,2]
[334998033,1723716685552,-1080.27,0.0001589,2]
[334998034,1723716685563,-618.64,0.0001589,2]
[334998035,1723716685579,-500.0,0.0001589,2]
[334998036,1723716685588,-500.0,0.0001589,2]
[334998037,1723716685598,-500.0,0.0001589,2]
[334998038,1723716685608,-500.0,0.0001589,2]
[334998039,1723716685618,-549.53,0.0001589,2]
[334998040,1723716685628,-761.97,0.0001589,2]
[334998041,1723716685638,-500.0,0.0001589,2]
[334998042,1723716685648,-500.0,0.0001589,2]
[334998043,1723716685659,-786.68,0.0001589,2]
[334998044,1723716685669,-582.93,0.0001589,2]
[334998045,1723716685680,-500.0,0.0001589,2]
[334998046,1723716685691,-598.5900778,0.0001589,2]
[334998047,1723716685701,-500.0,0.0001589,2]
[334998048,1723716685711,-1007.52,0.0001589,2]
[334998049,1723716685720,-1023.58,0.0001589,2]
[334998050,1723716685729,-500.0,0.0001589,2]
[334998051,1723716685739,-500.0,0.0001589,2]
[334998052,1723716685748,-636.2,0.0001589,2]
[334998053,1723716685758,-500.0,0.0001589,2]
[334998054,1723716685767,-523.91,0.0001589,2]
[334998055,1723716685776,-525.78,0.0001589,2]
[334998056,1723716685786,-500.0,0.0001589,2]
[334998057,1723716685795,-500.0,0.0001589,2]
[334998058,1723716685805,-540.2,0.0001589,2]
[334998059,1723716685814,-500.0,0.0001589,2]
[334998060,1723716685823,-722.89,0.0001589,2]
[334998061,1723716685832,-701.26,0.0001589,2]
[334998062,1723716685842,-500.0,0.0001589,2]
[334998063,1723716685851,-523.63,0.0001589,2]
[334998064,1723716685861,-500.0,0.0001589,2]
[334998065,1723716685870,-719.99,0.0001589,2]
[334998066,1723716685880,-705.57,0.0001589,2]
[334998067,1723716685889,-500.0,0.0001589,2]
[334998068,1723716685898,-760.14,0.0001589,2]
[334998069,1723716685909,-500.0,0.0001589,2]
[334998070,1723716685919,-500.0,0.0001589,2]
[334998071,1723716685929,-500.0,0.0001589,2]
[334998072,1723716685938,-500.0,0.0001589,2]
[334998073,1723716685948,-500.0,0.0001589,2]
[334998074,1723716685957,-703.21,0.0001589,2]
[334998075,1723716685967,-739.05,0.0001589,2]
[334998076,1723716685976,-809.79,0.0001589,2]
[334998077,1723716685986,-500.0,0.0001589,2]
[334998078,1723716685995,-753.0,0.0001589,2]
[334998079,1723716686004,-768.32,0.0001589,2]
[334998080,1723716686014,-735.32,0.0001589,2]
[334998081,1723716686023,-500.0,0.0001589,2]
[334998082,1723716686033,-500.0,0.0001589,2]
[334998083,1723716686043,-588.82,0.0001589,2]
[334998084,1723716686052,-500.0,0.0001589,2]
[334998085,1723716686061,-601.68,0.0001589,2]
[334998086,1723716686070,-959.18,0.0001589,2]
[334998087,1723716686080,-500.0,0.0001589,2]
[334998088,1723716686090,-615.39588893,0.0001589,2]
[334998089,1723716686100,-500.0,0.0001589,2]
[334998090,1723716686110,-577.71,0.0001589,2]
[334998091,1723716686119,-500.0,0.0001589,2]
[334998092,1723716686128,-739.29,0.0001589,2]
[334998093,1723716686137,-500.0,0.0001589,2]
[334998094,1723716686147,-516.12138366,0.0001589,2]
[334998095,1723716686159,-863.69,0.0001589,2]
[334998096,1723716686169,-683.56,0.0001589,2]
[334998097,1723716686179,-1482.01,0.0001589,2]
[334998098,1723716686188,-500.0,0.0001589,2]
[334998099,1723716686198,-637.65,0.0001589,2]
[334998100,1723716686207,-752.65,0.0001589,2]
[334998101,1723716686216,-500.0,0.0001589,2]
[334998102,1723716686227,-500.0,0.0001589,2]
[334998103,1723716686237,-916.36,0.0001589,2]
[334998104,1723716686247,-500.0,0.0001589,2]
[334998105,1723716686257,-905.05,0.0001589,2]
[334998106,1723716686267,-1137.78,0.0001589,2]
[334998107,1723716686276,-500.0,0.0001589,2]
[334998108,1723716686286,-500.0,0.0001589,2]
[334998109,1723716686296,-581.08,0.0001589,2]
[334998110,1723716686306,-618.51,0.0001589,2]
[334998111,1723716686316,-500.0,0.0001589,2]
[334998112,1723716686326,-696.9,0.0001589,2]
[334998113,1723716686335,-615.83,0.0001589,2]
[334998114,1723716686344,-500.0,0.0001589,2]
[334998115,1723716686354,-1246.53,0.0001589,2]
[334998116,1723716686364,-1277.91,0.0001589,2]
[334998117,1723716686374,-500.0,0.0001589,2]
[334998118,1723716686384,-500.0,0.0001589,2]
[334998119,1723716686395,-822.29,0.0001589,2]
[334998120,1723716686407,-500.0,0.0001589,2]
[334998121,1723716686417,-801.88,0.0001589,2]
[334998122,1723716686427,-500.0,0.0001589,2]
[334998123,1723716686437,-536.68,0.0001589,2]
[334998124,1723716686447,-500.0,0.0001589,2]
[334998125,1723716686457,-500.0,0.0001589,2]
[334998126,1723716686467,-3994.14,0.0001589,2]
[334998127,1723716686476,-546.03,0.0001589,2]
[334998128,1723716686486,-653.84,0.0001589,2]
[334998129,1723716686495,-855.41,0.0001589,2]
[334998130,1723716686505,-1698.32,0.0001589,2]
[334998131,1723716686514,-500.0,0.0001589,2]
[334998132,1723716686524,-500.0,0.0001589,2]
[334998133,1723716686534,-865.22,0.0001589,2]
[334998134,1723716686544,-1671.37,0.0001589,2]
[334998135,1723716686554,-701.74,0.0001589,2]
[334998136,1723716686564,-1706.36,0.0001589,2]
[334998137,1723716686575,-556.69,0.0001589,2]
[334998138,1723716686586,-996.25,0.0001589,2]
[334998139,1723716686596,-500.0,0.0001589,2]
[334998140,1723716686606,-500.0,0.0001589,2]
[334998141,1723716686618,-1331.16,0.0001589,2]
[334998142,1723716686628,-500.0,0.0001589,2]